[Event "*** Titled Tuesday Blitz"]
[Site "Chess.com"]
[Date "2021.04.06"]
[Round "6"]
[White "MITerryble"]
[Black "Aleksey_Sorokin"]
[Result "1-0"]
[WhiteElo "2914"]
[BlackElo "2791"]
[TimeControl "180+1"]
[EndTime "11:08:33 PDT"]
[Termination "MITerryble won by resignation"]

1. e4 {[%clk 0:02:59.9]} 1... c5 {[%clk 0:02:59.8]} 2. Nf3 {[%clk 0:02:59.3]}
2... d6 {[%clk 0:02:59.9]} 3. Bb5+ {[%clk 0:02:58.8]} 3... Nd7 {[%clk
0:02:59.6]} 4. d4 {[%clk 0:02:58.5]} 4... cxd4 {[%clk 0:03:00.5]} 5. Qxd4 {[%clk
0:02:58.9]} 5... a6 {[%clk 0:03:01]} 6. Bxd7+ {[%clk 0:02:58.6]} 6... Bxd7
{[%clk 0:03:01.9]} 7. Bg5 {[%clk 0:02:58.7]} 7... Rc8 {[%clk 0:02:58.4]} 8. O-O
{[%clk 0:02:57.9]} 8... h6 {[%clk 0:02:57.2]} 9. Bh4 {[%clk 0:02:57.7]} 9... e5
{[%clk 0:02:45.9]} 10. Bxd8 {[%clk 0:02:56.9]} 10... exd4 {[%clk 0:02:45.7]} 11.
Bb6 {[%clk 0:02:57.4]} 11... Bb5 {[%clk 0:02:36.3]} 12. Re1 {[%clk 0:02:38.2]}
12... Rxc2 {[%clk 0:02:35.1]} 13. Bxd4 {[%clk 0:02:36.9]} 13... Re2 {[%clk
0:02:33.5]} 14. Nc3 {[%clk 0:02:35.4]} 14... Rxe1+ {[%clk 0:02:33.5]} 15. Rxe1
{[%clk 0:02:36.3]} 15... Bc6 {[%clk 0:02:32.8]} 16. e5 {[%clk 0:02:36.2]} 16...
Bxf3 {[%clk 0:02:30.6]} 17. exd6+ {[%clk 0:02:32.5]} 17... Kd7 {[%clk
0:02:30.4]} 18. gxf3 {[%clk 0:02:33.1]} 18... Nf6 {[%clk 0:02:11.8]} 19. Bxf6
{[%clk 0:02:32.2]} 19... gxf6 {[%clk 0:02:11.9]} 20. Ne4 {[%clk 0:02:25.7]}
20... f5 {[%clk 0:02:06.5]} 21. Ng3 {[%clk 0:02:05.5]} 21... Rg8 {[%clk
0:02:01]} 22. Kf1 {[%clk 0:02:02.6]} 22... f4 {[%clk 0:01:57.9]} 23. Ne4 {[%clk
0:01:40.4]} 23... Bg7 {[%clk 0:01:57.6]} 24. Rc1 {[%clk 0:01:13.6]} 24... b6
{[%clk 0:01:57.8]} 25. Rc7+ {[%clk 0:01:11.9]} 25... Ke6 {[%clk 0:01:55.1]} 26.
Re7+ {[%clk 0:01:11.7]} 26... Kd5 {[%clk 0:01:54.4]} 27. d7 {[%clk 0:01:01.5]}
27... Rd8 {[%clk 0:01:52.2]} 28. b3 {[%clk 0:00:45.6]} 28... Kc6 {[%clk
0:01:40.4]} 29. Rxf7 {[%clk 0:00:45.8]} 29... Rxd7 {[%clk 0:01:40.9]} 30. Rxf4
{[%clk 0:00:46]} 30... a5 {[%clk 0:01:36.9]} 31. Rg4 {[%clk 0:00:42]} 31... Kb5
{[%clk 0:01:30.4]} 32. a4+ {[%clk 0:00:37.3]} 32... Ka6 {[%clk 0:01:18]} 33. f4
{[%clk 0:00:32.8]} 33... Rf7 {[%clk 0:01:08.7]} 34. f5 {[%clk 0:00:31.4]} 34...
Be5 {[%clk 0:01:07.1]} 35. f6 {[%clk 0:00:31.6]} 35... Kb7 {[%clk 0:01:05.7]}
36. Ke2 {[%clk 0:00:24]} 36... Kc6 {[%clk 0:01:05.6]} 37. f4 {[%clk 0:00:23.1]}
37... Ba1 {[%clk 0:01:01.1]} 38. Rg6 {[%clk 0:00:21.4]} 38... Kd5 {[%clk
0:00:56.2]} 39. Kd3 {[%clk 0:00:21.7]} 39... Rh7 {[%clk 0:00:53.8]} 40. h3
{[%clk 0:00:16.7]} 40... Rf7 {[%clk 0:00:50.5]} 41. Rxh6 {[%clk 0:00:16.1]}
41... Bb2 {[%clk 0:00:50.7]} 42. Rh5+ {[%clk 0:00:15]} 42... Kc6 {[%clk
0:00:48.9]} 43. Rf5 {[%clk 0:00:13.1]} 43... Kd7 {[%clk 0:00:44.4]} 44. Ng5
{[%clk 0:00:12]} 44... Rxf6 {[%clk 0:00:43.5]} 45. Rxf6 {[%clk 0:00:12.4]} 45...
Bxf6 {[%clk 0:00:44.3]} 46. Ke4 {[%clk 0:00:12.9]} 46... Kd6 {[%clk 0:00:44.2]}
47. h4 {[%clk 0:00:12.4]} 47... Kc5 {[%clk 0:00:44.5]} 48. Kd3 {[%clk
0:00:12.6]} 48... Kb4 {[%clk 0:00:42.9]} 49. Kc2 {[%clk 0:00:12.7]} 49... b5
{[%clk 0:00:43.5]} 50. axb5 {[%clk 0:00:12.8]} 50... Kxb5 {[%clk 0:00:44.1]} 51.
h5 {[%clk 0:00:13]} 51... a4 {[%clk 0:00:44.5]} 52. bxa4+ {[%clk 0:00:12.9]}
52... Kxa4 {[%clk 0:00:45.4]} 53. Kd3 {[%clk 0:00:09.3]} 53... Kb5 {[%clk
0:00:45.6]} 54. Ke4 {[%clk 0:00:09.4]} 54... Kc6 {[%clk 0:00:46.1]} 55. Kf5
{[%clk 0:00:09.9]} 55... Bb2 {[%clk 0:00:44.9]} 56. Ke6 {[%clk 0:00:10.1]} 56...
Bc1 {[%clk 0:00:40.5]} 57. h6 {[%clk 0:00:07.9]} 1-0

[Event "*** Titled Tuesday Blitz"]
[Site "Chess.com"]
[Date "2021.04.06"]
[Round "6"]
[White "krasavetc"]
[Black "Gerodot71"]
[Result "1-0"]
[WhiteElo "2395"]
[BlackElo "2548"]
[TimeControl "180+1"]
[EndTime "11:08:33 PDT"]
[Termination "krasavetc won by resignation"]

1. e4 {[%clk 0:03:00.9]} 1... e5 {[%clk 0:03:00]} 2. Nf3 {[%clk 0:03:00.2]} 2...
Nc6 {[%clk 0:03:00.4]} 3. Bb5 {[%clk 0:02:57.6]} 3... a6 {[%clk 0:03:00.3]} 4.
Bxc6 {[%clk 0:02:57]} 4... dxc6 {[%clk 0:03:01.2]} 5. d4 {[%clk 0:02:57.1]} 5...
exd4 {[%clk 0:03:01.1]} 6. Qxd4 {[%clk 0:02:58]} 6... Qxd4 {[%clk 0:03:00.9]} 7.
Nxd4 {[%clk 0:02:58.9]} 7... Bd7 {[%clk 0:03:00.8]} 8. Nc3 {[%clk 0:02:59.4]}
8... O-O-O {[%clk 0:03:01.1]} 9. Be3 {[%clk 0:02:59.7]} 9... c5 {[%clk
0:02:59.9]} 10. Nde2 {[%clk 0:02:59]} 10... b6 {[%clk 0:02:58.1]} 11. f3 {[%clk
0:02:58.9]} 11... a5 {[%clk 0:02:55.7]} 12. Kf2 {[%clk 0:02:58.7]} 12... Bc6
{[%clk 0:02:53.7]} 13. Rad1 {[%clk 0:02:58]} 13... Nf6 {[%clk 0:02:54.2]} 14.
Nf4 {[%clk 0:02:54.3]} 14... Be7 {[%clk 0:02:52.6]} 15. h4 {[%clk 0:02:51.7]}
15... Rhe8 {[%clk 0:02:51.1]} 16. h5 {[%clk 0:02:49.2]} 16... Bf8 {[%clk
0:02:46.6]} 17. g4 {[%clk 0:02:47.6]} 17... h6 {[%clk 0:02:42.4]} 18. Rxd8+
{[%clk 0:02:37]} 18... Rxd8 {[%clk 0:02:41.5]} 19. Rd1 {[%clk 0:02:37.6]} 19...
Rxd1 {[%clk 0:02:31.5]} 20. Nxd1 {[%clk 0:02:38.5]} 20... Nd7 {[%clk 0:02:29.1]}
21. Bd2 {[%clk 0:02:32.4]} 21... Ne5 {[%clk 0:02:21.1]} 22. Ne3 {[%clk 0:02:32]}
22... Bd7 {[%clk 0:01:55]} 23. Nfd5 {[%clk 0:02:24.9]} 23... Nc6 {[%clk
0:01:53.6]} 24. c3 {[%clk 0:02:17.4]} 24... a4 {[%clk 0:01:48.8]} 25. f4 {[%clk
0:02:12.7]} 25... Be6 {[%clk 0:01:37.9]} 26. Kf3 {[%clk 0:02:06.4]} 26... b5
{[%clk 0:01:32.4]} 27. a3 {[%clk 0:01:43.5]} 27... Na5 {[%clk 0:01:28.7]} 28. f5
{[%clk 0:01:37]} 28... Bd7 {[%clk 0:01:25.1]} 29. e5 {[%clk 0:01:26.9]} 29...
Nb3 {[%clk 0:01:24.7]} 30. Be1 {[%clk 0:01:26]} 30... Nc1 {[%clk 0:01:09.1]} 31.
Nf4 {[%clk 0:01:09.4]} 31... Bc6+ {[%clk 0:01:07.5]} 32. Kg3 {[%clk 0:00:59.5]}
32... Be7 {[%clk 0:00:52.6]} 33. Bd2 {[%clk 0:00:52]} 33... Nb3 {[%clk
0:00:52.1]} 34. Nf1 {[%clk 0:00:51.4]} 34... Bg5 {[%clk 0:00:48]} 35. Be3 {[%clk
0:00:50.9]} 35... Be7 {[%clk 0:00:45.2]} 36. Nd2 {[%clk 0:00:45.5]} 36... b4
{[%clk 0:00:43.7]} 37. Nxb3 {[%clk 0:00:21.4]} 37... bxa3 {[%clk 0:00:39.1]} 38.
bxa3 {[%clk 0:00:12.5]} 38... axb3 {[%clk 0:00:39.1]} 39. Nd3 {[%clk 0:00:10.3]}
39... c4 {[%clk 0:00:38.5]} 40. Nb2 {[%clk 0:00:10.2]} 40... Bxa3 {[%clk
0:00:37.3]} 41. Nxc4 {[%clk 0:00:10.3]} 41... b2 {[%clk 0:00:36.1]} 42. Nxa3
{[%clk 0:00:09.7]} 42... Be4 {[%clk 0:00:35.2]} 43. Kf4 {[%clk 0:00:09.5]} 43...
b1=Q {[%clk 0:00:35.1]} 44. Nxb1 {[%clk 0:00:08.7]} 44... Bxb1 {[%clk 0:00:36]}
45. Bc5 {[%clk 0:00:09.1]} 45... g6 {[%clk 0:00:30.4]} 46. hxg6 {[%clk
0:00:07.8]} 46... fxg6 {[%clk 0:00:30.4]} 47. e6 {[%clk 0:00:08.2]} 47... h5
{[%clk 0:00:29.4]} 48. f6 {[%clk 0:00:08]} 48... Ba2 {[%clk 0:00:28.7]} 49. f7
{[%clk 0:00:08.1]} 1-0

[Event "*** Titled Tuesday Blitz"]
[Site "Chess.com"]
[Date "2021.04.06"]
[Round "6"]
[White "rachidhuilda"]
[Black "korkmaz16"]
[Result "1-0"]
[WhiteElo "2275"]
[BlackElo "2416"]
[TimeControl "180+1"]
[EndTime "11:08:35 PDT"]
[Termination "rachidhuilda won by resignation"]

1. d4 {[%clk 0:03:00.9]} 1... d5 {[%clk 0:02:59.5]} 2. Nf3 {[%clk 0:03:00.3]}
2... Nf6 {[%clk 0:02:59.4]} 3. c4 {[%clk 0:03:00.7]} 3... c6 {[%clk 0:02:59.4]}
4. Nc3 {[%clk 0:03:00.1]} 4... e6 {[%clk 0:02:59.6]} 5. Bg5 {[%clk 0:02:59]}
5... Nbd7 {[%clk 0:02:59.6]} 6. e3 {[%clk 0:02:56.9]} 6... Qa5 {[%clk
0:02:55.8]} 7. Bxf6 {[%clk 0:02:56.3]} 7... Nxf6 {[%clk 0:02:55.5]} 8. Qc2
{[%clk 0:02:56.8]} 8... Bb4 {[%clk 0:02:38.1]} 9. Bd3 {[%clk 0:02:55.9]} 9...
dxc4 {[%clk 0:02:35.6]} 10. Bxc4 {[%clk 0:02:56]} 10... O-O {[%clk 0:02:33.6]}
11. O-O {[%clk 0:02:56]} 11... c5 {[%clk 0:02:33.5]} 12. a3 {[%clk 0:02:47.8]}
12... Bxc3 {[%clk 0:02:32.2]} 13. Qxc3 {[%clk 0:02:47.1]} 13... Qc7 {[%clk
0:02:29.6]} 14. dxc5 {[%clk 0:02:28.2]} 14... Qxc5 {[%clk 0:02:27]} 15. Rac1
{[%clk 0:02:28.4]} 15... b6 {[%clk 0:02:15.6]} 16. Be2 {[%clk 0:02:25.7]} 16...
Qxc3 {[%clk 0:02:00]} 17. Rxc3 {[%clk 0:02:24.7]} 17... Bb7 {[%clk 0:02:00.6]}
18. Rc7 {[%clk 0:02:21.7]} 18... Rab8 {[%clk 0:02:00.5]} 19. Rfc1 {[%clk
0:02:15.8]} 19... Nd5 {[%clk 0:01:59.3]} 20. Rd7 {[%clk 0:02:08.6]} 20... Rfd8
{[%clk 0:01:54.6]} 21. Rxd8+ {[%clk 0:02:06.9]} 21... Rxd8 {[%clk 0:01:54.3]}
22. h3 {[%clk 0:01:59.6]} 22... f6 {[%clk 0:01:52.3]} 23. Nd4 {[%clk 0:01:49.4]}
23... e5 {[%clk 0:01:44.1]} 24. Nf5 {[%clk 0:01:29.1]} 24... g6 {[%clk
0:01:37.8]} 25. Ng3 {[%clk 0:01:25.9]} 25... f5 {[%clk 0:01:34.5]} 26. Bc4
{[%clk 0:01:23.1]} 26... Rd7 {[%clk 0:01:17.4]} 27. e4 {[%clk 0:01:22.4]} 27...
fxe4 {[%clk 0:01:14.3]} 28. Nxe4 {[%clk 0:01:23.3]} 28... Kg7 {[%clk 0:01:12.5]}
29. Bxd5 {[%clk 0:01:06.4]} 29... Bxd5 {[%clk 0:01:11.6]} 30. Nc3 {[%clk
0:01:06.7]} 30... Bb3 {[%clk 0:01:05.3]} 31. Ne4 {[%clk 0:01:01.5]} 31... Rd1+
{[%clk 0:01:00.6]} 32. Rxd1 {[%clk 0:01:01]} 32... Bxd1 {[%clk 0:01:01.5]} 33.
f3 {[%clk 0:00:52.2]} 33... Kf7 {[%clk 0:00:58.4]} 34. Kf2 {[%clk 0:00:52.4]}
34... Bc2 {[%clk 0:00:54.8]} 35. Ke3 {[%clk 0:00:46.6]} 35... h6 {[%clk
0:00:54.1]} 36. Nd6+ {[%clk 0:00:40.9]} 36... Ke7 {[%clk 0:00:46.2]} 37. Nb5
{[%clk 0:00:40.2]} 37... a6 {[%clk 0:00:44]} 38. Nc7 {[%clk 0:00:36.9]} 38... a5
{[%clk 0:00:44]} 39. Nd5+ {[%clk 0:00:37]} 39... Kd6 {[%clk 0:00:42.1]} 40. Nxb6
{[%clk 0:00:37.9]} 40... Bb3 {[%clk 0:00:41.7]} 41. Kd3 {[%clk 0:00:35.4]} 41...
Kc5 {[%clk 0:00:37.2]} 42. Nd7+ {[%clk 0:00:34.6]} 42... Kd6 {[%clk 0:00:37.5]}
43. Nf6 {[%clk 0:00:34]} 43... Kc5 {[%clk 0:00:35.7]} 44. Ng4 {[%clk 0:00:30.1]}
44... Kd5 {[%clk 0:00:30.1]} 45. Nxh6 {[%clk 0:00:28.5]} 45... Bc4+ {[%clk
0:00:30.4]} 46. Ke3 {[%clk 0:00:28]} 46... Bf1 {[%clk 0:00:31.3]} 47. Kf2 {[%clk
0:00:27.9]} 47... Bd3 {[%clk 0:00:30.9]} 48. b4 {[%clk 0:00:28]} 48... a4 {[%clk
0:00:30.7]} 49. Ke3 {[%clk 0:00:27.8]} 49... Kc4 {[%clk 0:00:30.8]} 50. Ng4
{[%clk 0:00:26.3]} 50... Bf1 {[%clk 0:00:30.7]} 51. Kf2 {[%clk 0:00:25.2]} 51...
Bd3 {[%clk 0:00:30.2]} 52. Nxe5+ {[%clk 0:00:25.1]} 52... Kd4 {[%clk 0:00:30.4]}
53. Nxd3 {[%clk 0:00:25]} 53... Kxd3 {[%clk 0:00:31.3]} 54. Kg3 {[%clk
0:00:22.6]} 54... Kc4 {[%clk 0:00:30.8]} 55. Kg4 {[%clk 0:00:22.5]} 55... Kb3
{[%clk 0:00:31.6]} 56. b5 {[%clk 0:00:22.6]} 56... Kxa3 {[%clk 0:00:32.5]} 57.
b6 {[%clk 0:00:23.3]} 57... Ka2 {[%clk 0:00:33.4]} 58. b7 {[%clk 0:00:24]} 58...
a3 {[%clk 0:00:34.3]} 59. b8=Q {[%clk 0:00:24.4]} 59... g5 {[%clk 0:00:35.2]}
60. Qb4 {[%clk 0:00:21.8]} 60... Ka1 {[%clk 0:00:33.6]} 61. Qxa3+ {[%clk
0:00:22.2]} 1-0

[Event "*** Titled Tuesday Blitz"]
[Site "Chess.com"]
[Date "2021.04.06"]
[Round "6"]
[White "Slovak_fighter2000"]
[Black "joejan"]
[Result "1-0"]
[WhiteElo "2491"]
[BlackElo "2287"]
[TimeControl "180+1"]
[EndTime "11:08:36 PDT"]
[Termination "Slovak_fighter2000 won by checkmate"]

1. d4 {[%clk 0:02:57.8]} 1... Nf6 {[%clk 0:02:50.4]} 2. Nf3 {[%clk 0:02:58.1]}
2... g6 {[%clk 0:02:49.4]} 3. c4 {[%clk 0:02:57]} 3... Bg7 {[%clk 0:02:48.3]} 4.
Nc3 {[%clk 0:02:57.2]} 4... d6 {[%clk 0:02:47.8]} 5. e4 {[%clk 0:02:55.6]} 5...
O-O {[%clk 0:02:48.7]} 6. Be2 {[%clk 0:02:54]} 6... e5 {[%clk 0:02:48.6]} 7. Be3
{[%clk 0:02:50]} 7... Nc6 {[%clk 0:02:47.2]} 8. d5 {[%clk 0:02:48.7]} 8... Ne7
{[%clk 0:02:47.1]} 9. Nd2 {[%clk 0:02:47.2]} 9... Nd7 {[%clk 0:02:44.8]} 10. b4
{[%clk 0:02:45.8]} 10... f5 {[%clk 0:02:44.2]} 11. f3 {[%clk 0:02:42.2]} 11...
f4 {[%clk 0:02:44]} 12. Bf2 {[%clk 0:02:40.1]} 12... b6 {[%clk 0:02:44.4]} 13.
Nb3 {[%clk 0:02:32.2]} 13... g5 {[%clk 0:02:32.6]} 14. c5 {[%clk 0:02:31.3]}
14... bxc5 {[%clk 0:02:28.1]} 15. bxc5 {[%clk 0:02:32.2]} 15... h5 {[%clk
0:02:26.7]} 16. cxd6 {[%clk 0:02:23.4]} 16... cxd6 {[%clk 0:02:26.3]} 17. Nb5
{[%clk 0:02:20.8]} 17... Nf6 {[%clk 0:02:24.5]} 18. Nxa7 {[%clk 0:02:13]} 18...
Bd7 {[%clk 0:02:22.3]} 19. Rc1 {[%clk 0:02:09.5]} 19... g4 {[%clk 0:02:16.1]}
20. Nc6 {[%clk 0:02:07.1]} 20... Qe8 {[%clk 0:02:13.1]} 21. Nxe7+ {[%clk
0:02:00.4]} 21... Qxe7 {[%clk 0:02:12.3]} 22. Ra1 {[%clk 0:01:58.2]} 22... Bh6
{[%clk 0:02:01.3]} 23. O-O {[%clk 0:01:51.5]} 23... Kh8 {[%clk 0:01:54.6]} 24.
Bh4 {[%clk 0:01:44.6]} 24... Rg8 {[%clk 0:01:53]} 25. Kh1 {[%clk 0:01:42.8]}
25... Bg5 {[%clk 0:01:51.8]} 26. Qe1 {[%clk 0:01:36.2]} 26... Nxe4 {[%clk
0:01:41.5]} 27. Bxg5 {[%clk 0:01:29.1]} 27... Nxg5 {[%clk 0:01:40.4]} 28. Qh4
{[%clk 0:01:23.5]} 28... Qh7 {[%clk 0:01:35.2]} 29. Rfd1 {[%clk 0:01:08.4]}
29... e4 {[%clk 0:01:32]} 30. fxe4 {[%clk 0:01:04]} 30... Nxe4 {[%clk
0:01:24.9]} 31. Bd3 {[%clk 0:00:59]} 31... Bf5 {[%clk 0:01:24.2]} 32. Nd4 {[%clk
0:00:39.4]} 32... Bg6 {[%clk 0:01:10.3]} 33. Ne6 {[%clk 0:00:31.1]} 33... Ra3
{[%clk 0:01:04.3]} 34. Bxe4 {[%clk 0:00:29.8]} 34... Bxe4 {[%clk 0:01:03.2]} 35.
Qf6+ {[%clk 0:00:29.9]} 35... Rg7 {[%clk 0:01:01.7]} 36. Nxg7 {[%clk 0:00:27.6]}
36... Qxg7 {[%clk 0:00:53.7]} 37. Qxf4 {[%clk 0:00:21.6]} 37... Bxd5 {[%clk
0:00:53.3]} 38. Rf1 {[%clk 0:00:16.2]} 38... Rxa2 {[%clk 0:00:46.5]} 39. Rxa2
{[%clk 0:00:16.1]} 39... Bxa2 {[%clk 0:00:46]} 40. Qxd6 {[%clk 0:00:16.3]} 40...
Bf7 {[%clk 0:00:40.7]} 41. Qe7 {[%clk 0:00:13.9]} 41... Kg8 {[%clk 0:00:39.5]}
42. Qd8+ {[%clk 0:00:12.9]} 42... Kh7 {[%clk 0:00:38.5]} 43. Qf6 {[%clk
0:00:13.3]} 43... Qxf6 {[%clk 0:00:36.5]} 44. Rxf6 {[%clk 0:00:14.2]} 44... Kg7
{[%clk 0:00:37.1]} 45. Rf4 {[%clk 0:00:13.1]} 45... Be6 {[%clk 0:00:35]} 46. Kg1
{[%clk 0:00:13.4]} 46... Kg6 {[%clk 0:00:34.8]} 47. Kf2 {[%clk 0:00:13.7]} 47...
Kg5 {[%clk 0:00:34.3]} 48. g3 {[%clk 0:00:14.1]} 48... Bd7 {[%clk 0:00:31.8]}
49. Ke3 {[%clk 0:00:15]} 49... Be6 {[%clk 0:00:31.2]} 50. Kd4 {[%clk 0:00:15.6]}
50... h4 {[%clk 0:00:30.1]} 51. Ke5 {[%clk 0:00:15.8]} 51... hxg3 {[%clk
0:00:28.9]} 52. hxg3 {[%clk 0:00:16.7]} 52... Bd7 {[%clk 0:00:28.7]} 53. Rf7
{[%clk 0:00:16.1]} 53... Bc8 {[%clk 0:00:28]} 54. Rg7+ {[%clk 0:00:16.2]} 54...
Kh6 {[%clk 0:00:27.2]} 55. Kf6 {[%clk 0:00:16.3]} 55... Kh5 {[%clk 0:00:24.3]}
56. Rh7# {[%clk 0:00:15.7]} 1-0

[Event "*** Titled Tuesday Blitz"]
[Site "Chess.com"]
[Date "2021.04.06"]
[Round "6"]
[White "onnoelgersma"]
[Black "Grineva_Marianna"]
[Result "1/2-1/2"]
[WhiteElo "2418"]
[BlackElo "2261"]
[TimeControl "180+1"]
[EndTime "11:08:37 PDT"]
[Termination "Game drawn by repetition"]

1. d4 {[%clk 0:03:00.9]} 1... d6 {[%clk 0:02:57.9]} 2. Nf3 {[%clk 0:03:01.1]}
2... Nd7 {[%clk 0:02:58.2]} 3. Bg5 {[%clk 0:02:57.1]} 3... h6 {[%clk 0:02:56.9]}
4. Bh4 {[%clk 0:02:57.5]} 4... g5 {[%clk 0:02:57]} 5. Bg3 {[%clk 0:02:57.9]}
5... Bg7 {[%clk 0:02:57.6]} 6. e4 {[%clk 0:02:58]} 6... Nf8 {[%clk 0:02:55.4]}
7. c4 {[%clk 0:02:57.9]} 7... Ne6 {[%clk 0:02:50.2]} 8. h3 {[%clk 0:02:35.9]}
8... c5 {[%clk 0:02:45.6]} 9. d5 {[%clk 0:02:30.2]} 9... Bxb2 {[%clk 0:02:33.1]}
10. dxe6 {[%clk 0:02:27.1]} 10... Bxa1 {[%clk 0:02:29.7]} 11. exf7+ {[%clk
0:02:11.3]} 11... Kxf7 {[%clk 0:02:29.3]} 12. Bd3 {[%clk 0:02:10.6]} 12... Qa5+
{[%clk 0:02:19]} 13. Nbd2 {[%clk 0:02:00]} 13... Qxa2 {[%clk 0:02:12.2]} 14. O-O
{[%clk 0:01:58.2]} 14... Bf6 {[%clk 0:02:11.2]} 15. e5 {[%clk 0:01:57.6]} 15...
dxe5 {[%clk 0:02:01.4]} 16. Nxe5+ {[%clk 0:01:52.8]} 16... Bxe5 {[%clk
0:01:50.4]} 17. Bxe5 {[%clk 0:01:53.7]} 17... Nf6 {[%clk 0:01:49.9]} 18. Bxf6
{[%clk 0:01:33.6]} 18... exf6 {[%clk 0:01:37.3]} 19. Qh5+ {[%clk 0:01:33]} 19...
Kf8 {[%clk 0:01:33.5]} 20. Qg6 {[%clk 0:00:27.4]} 20... Qxd2 {[%clk 0:01:06.4]}
21. Qxf6+ {[%clk 0:00:27.2]} 21... Ke8 {[%clk 0:01:06.9]} 22. Qxh8+ {[%clk
0:00:26.8]} 22... Kd7 {[%clk 0:01:05.8]} 23. Qg7+ {[%clk 0:00:25.2]} 23... Kd6
{[%clk 0:01:01.7]} 24. Qf6+ {[%clk 0:00:24.8]} 24... Kc7 {[%clk 0:01:00.4]} 25.
Qe7+ {[%clk 0:00:24.5]} 25... Bd7 {[%clk 0:00:53.9]} 26. Qxc5+ {[%clk 0:00:22]}
26... Bc6 {[%clk 0:00:54.2]} 27. Qe5+ {[%clk 0:00:20.6]} 27... Kd8 {[%clk
0:00:32.4]} 28. Qd6+ {[%clk 0:00:14.4]} 28... Bd7 {[%clk 0:00:24]} 29. Qf8+
{[%clk 0:00:14.2]} 29... Kc7 {[%clk 0:00:21.7]} 30. Qc5+ {[%clk 0:00:14.3]}
30... Kd8 {[%clk 0:00:21.1]} 31. Be4 {[%clk 0:00:12]} 31... Rc8 {[%clk
0:00:16.3]} 32. Qe5 {[%clk 0:00:10.9]} 32... Rxc4 {[%clk 0:00:13.6]} 33. Bxb7
{[%clk 0:00:09.9]} 33... Rc2 {[%clk 0:00:12.7]} 34. Bf3 {[%clk 0:00:08.8]} 34...
Rc1 {[%clk 0:00:12.2]} 35. Qh8+ {[%clk 0:00:05.8]} 35... Kc7 {[%clk 0:00:12.1]}
36. Qe5+ {[%clk 0:00:06]} 36... Kd8 {[%clk 0:00:11]} 37. Qb8+ {[%clk 0:00:06.2]}
37... Ke7 {[%clk 0:00:10.8]} 38. Qe5+ {[%clk 0:00:06.5]} 38... Be6 {[%clk
0:00:10.5]} 39. Qg7+ {[%clk 0:00:06]} 39... Kd6 {[%clk 0:00:10]} 40. Qf8+ {[%clk
0:00:06.4]} 40... Kc7 {[%clk 0:00:08.5]} 41. Qe7+ {[%clk 0:00:06]} 41... Bd7
{[%clk 0:00:08.7]} 42. Qe5+ {[%clk 0:00:06.1]} 42... Kb6 {[%clk 0:00:08.7]} 43.
Qf6+ {[%clk 0:00:04.3]} 43... Kc7 {[%clk 0:00:07.6]} 44. Qe5+ {[%clk 0:00:04.6]}
1/2-1/2

[Event "*** Titled Tuesday Blitz"]
[Site "Chess.com"]
[Date "2021.04.06"]
[Round "6"]
[White "jd001"]
[Black "DFeco"]
[Result "0-1"]
[WhiteElo "2159"]
[BlackElo "2325"]
[TimeControl "180+1"]
[EndTime "11:08:37 PDT"]
[Termination "DFeco won by resignation"]

1. d4 {[%clk 0:03:00.9]} 1... d5 {[%clk 0:02:55.6]} 2. c4 {[%clk 0:03:00.8]}
2... c6 {[%clk 0:02:52.4]} 3. Nc3 {[%clk 0:03:00.3]} 3... Nf6 {[%clk 0:02:52.8]}
4. Nf3 {[%clk 0:03:00.2]} 4... a6 {[%clk 0:02:52.7]} 5. c5 {[%clk 0:02:58.4]}
5... Bf5 {[%clk 0:02:47.7]} 6. Bf4 {[%clk 0:02:57.7]} 6... Nbd7 {[%clk
0:02:47.4]} 7. b4 {[%clk 0:02:55.8]} 7... e6 {[%clk 0:02:44.9]} 8. g3 {[%clk
0:02:54.9]} 8... Be7 {[%clk 0:02:44.7]} 9. Bg2 {[%clk 0:02:54.2]} 9... h6 {[%clk
0:02:42.2]} 10. h4 {[%clk 0:02:52.8]} 10... O-O {[%clk 0:02:42]} 11. O-O {[%clk
0:02:52]} 11... Qc8 {[%clk 0:02:41.6]} 12. a4 {[%clk 0:02:49.5]} 12... Bd8
{[%clk 0:02:41.2]} 13. b5 {[%clk 0:02:46.8]} 13... Bc7 {[%clk 0:02:38.5]} 14.
Bxc7 {[%clk 0:02:42.1]} 14... Qxc7 {[%clk 0:02:38.3]} 15. bxc6 {[%clk
0:02:41.6]} 15... bxc6 {[%clk 0:02:37.5]} 16. Qd2 {[%clk 0:02:27.8]} 16... a5
{[%clk 0:02:34.7]} 17. e3 {[%clk 0:02:24]} 17... Rfb8 {[%clk 0:02:30.8]} 18. Ra2
{[%clk 0:02:19.1]} 18... Rb7 {[%clk 0:02:29.1]} 19. Ne1 {[%clk 0:02:04.5]} 19...
e5 {[%clk 0:02:14.1]} 20. Nd3 {[%clk 0:01:53.5]} 20... exd4 {[%clk 0:02:06.8]}
21. exd4 {[%clk 0:01:52.7]} 21... Rab8 {[%clk 0:02:07.2]} 22. Re1 {[%clk
0:01:47.8]} 22... Nf8 {[%clk 0:02:06.1]} 23. Ne5 {[%clk 0:01:40.3]} 23... Ne6
{[%clk 0:02:02]} 24. f3 {[%clk 0:01:26.8]} 24... Rb4 {[%clk 0:01:57.8]} 25. Ne2
{[%clk 0:01:17.2]} 25... Nxc5 {[%clk 0:01:47.9]} 26. g4 {[%clk 0:01:11.1]} 26...
Nb3 {[%clk 0:01:35.4]} 27. Qc3 {[%clk 0:01:04.8]} 27... Be6 {[%clk 0:01:30]} 28.
Qxc6 {[%clk 0:01:03.2]} 28... Qa7 {[%clk 0:01:22.7]} 29. Qc3 {[%clk 0:00:58.8]}
29... Nxd4 {[%clk 0:01:01]} 30. Nxd4 {[%clk 0:00:53.5]} 30... Rxd4 {[%clk
0:00:58.1]} 31. Nc6 {[%clk 0:00:49.6]} 31... Rc4+ {[%clk 0:00:54.1]} 32. Nxa7
{[%clk 0:00:47.3]} 32... Rxc3 {[%clk 0:00:54.1]} 33. g5 {[%clk 0:00:43.7]} 33...
Nh5 {[%clk 0:00:48]} 34. g6 {[%clk 0:00:42.2]} 34... Nf4 {[%clk 0:00:43.7]} 35.
gxf7+ {[%clk 0:00:41.4]} 35... Bxf7 {[%clk 0:00:43.6]} 36. Nb5 {[%clk
0:00:38.9]} 36... Rc6 {[%clk 0:00:37.1]} 37. Rd2 {[%clk 0:00:32.8]} 37... Rg6
{[%clk 0:00:34.2]} 38. Kh2 {[%clk 0:00:31.7]} 38... Nxg2 {[%clk 0:00:31]} 39.
Rxg2 {[%clk 0:00:31.5]} 39... Rxg2+ {[%clk 0:00:27.4]} 40. Kxg2 {[%clk
0:00:31.7]} 40... Be8 {[%clk 0:00:25.4]} 41. Nd6 {[%clk 0:00:29.5]} 41... Bxa4
{[%clk 0:00:22.3]} 42. Ra1 {[%clk 0:00:28.5]} 42... Rb4 {[%clk 0:00:20.4]} 43.
Kg3 {[%clk 0:00:27]} 43... d4 {[%clk 0:00:19.6]} 44. Nf5 {[%clk 0:00:26.5]}
44... d3 {[%clk 0:00:19.3]} 45. Ra2 {[%clk 0:00:26.2]} 45... Bc2 {[%clk
0:00:18.2]} 46. Kf2 {[%clk 0:00:24.7]} 46... d2 {[%clk 0:00:16.9]} 47. Rxc2
{[%clk 0:00:22]} 47... d1=Q {[%clk 0:00:15.6]} 48. Re2 {[%clk 0:00:21.3]} 48...
Rb1 {[%clk 0:00:14.2]} 49. Re7 {[%clk 0:00:16.8]} 49... Qc2+ {[%clk 0:00:12.6]}
0-1